lending/lending_fUSD_20250516
["ID","MTS","AMOUNT","RATE_DAILY","PERIOD"]
[361254992,1747397440704,-400.0,0.00016438,2]
[361254993,1747397440714,-182.324886,0.00016438,2]
[361254994,1747397440724,-182.324886,0.00016438,2]
[361254995,1747397440734,-2296.58,0.00016438,2]
[361254996,1747397440743,-400.0,0.00016438,2]
[361254997,1747397440753,-182.324886,0.00016438,2]
[361254998,1747397440763,-400.0,0.00016438,2]
[361254999,1747397440772,-182.324886,0.00016438,2]
[361255000,1747397440782,-400.0,0.00016438,2]
[361255001,1747397440791,-537.68,0.00016438,2]
[361255002,1747397440802,-812.83,0.00016438,2]
[361255003,1747397440812,-404.50092,0.00016438,2]
[361255004,1747397440821,-400.0,0.00016438,2]
[361255005,1747397440831,-400.0,0.00016438,2]
[361255006,1747397440840,-400.0,0.00016438,2]
[361255007,1747397440850,-2197.1,0.00016438,2]
[361255008,1747397440859,-400.0,0.00016438,2]
[361255009,1747397440869,-400.0,0.00016438,2]
[361255010,1747397440879,-956.11,0.00016438,2]
[361255011,1747397440888,-400.0,0.00016438,2]
[361255012,1747397440898,-400.0,0.00016438,2]
[361255013,1747397440907,-1997.14,0.00016438,2]
[361255014,1747397440916,-313.63362094,0.00016438,2]
[361255015,1747397440926,-400.0,0.00016438,2]
[361255016,1747397440935,-400.0,0.00016438,2]
[361255017,1747397440944,-426.98,0.00016438,2]
[361255018,1747397440954,-400.0,0.00016438,2]
[361255019,1747397440963,-400.0,0.00016438,2]
[361255020,1747397440973,-400.0,0.00016438,2]
[361255021,1747397440983,-528.93,0.00016438,2]
[361255022,1747397440992,-936.19,0.00016438,2]
[361255023,1747397441002,-400.0,0.00016438,2]
[361255024,1747397441011,-400.0,0.00016438,2]
[361255025,1747397441021,-718.57,0.00016438,2]
[361255026,1747397441031,-986.07,0.00016438,2]
[361255027,1747397441040,-400.0,0.00016438,2]
[361255028,1747397441051,-400.0,0.00016438,2]
[361255029,1747397441060,-400.0,0.00016438,2]
[361255030,1747397441070,-400.0,0.00016438,2]
[361255031,1747397441079,-756.61,0.00016438,2]
[361255032,1747397441088,-400.0,0.00016438,2]
[361255033,1747397441098,-400.0,0.00016438,2]
[361255034,1747397441108,-810.14,0.00016438,2]
[361255035,1747397441117,-400.0,0.00016438,2]
[361255036,1747397441127,-400.0,0.00016438,2]
[361255037,1747397441137,-400.0,0.00016438,2]
[361255038,1747397441146,-436.59,0.00016438,2]
[361255039,1747397441156,-427.63252337,0.00016438,2]
[361255040,1747397441166,-400.0,0.00016438,2]
[361255041,1747397441176,-407.21421494,0.00016438,2]
[361255042,1747397441185,-864.37,0.00016438,2]
[361255043,1747397441195,-2218.63,0.00016438,2]
[361255044,1747397441205,-1024.87,0.00016438,2]
[361255045,1747397441214,-400.0,0.00016438,2]
[361255046,1747397441224,-263.62692303,0.00016438,2]
[361255047,1747397441234,-695.4,0.00016438,2]
[361255048,1747397441243,-400.0,0.00016438,2]
[361255049,1747397441253,-400.0,0.00016438,2]
[361255050,1747397441262,-400.0,0.00016438,2]
[361255051,1747397441271,-400.0,0.00016438,2]
[361255052,1747397441281,-400.0,0.00016438,2]
[361255053,1747397441290,-380.00263435,0.00016438,2]
[361255054,1747397441300,-1280.74,0.00016438,2]
[361255055,1747397441311,-400.0,0.00016438,2]
[361255056,1747397441320,-400.0,0.00016438,2]
[361255057,1747397441330,-470.09,0.00016438,2]
[361255058,1747397441339,-400.0,0.00016438,2]
[361255059,1747397441349,-400.0,0.00016438,2]
[361255060,1747397441358,-400.0,0.00016438,2]
[361255061,1747397441367,-400.0,0.00016438,2]
[361255062,1747397441377,-400.0,0.00016438,2]
[361255063,1747397441386,-400.0,0.00016438,2]
[361255064,1747397441395,-400.0,0.00016438,2]
[361255065,1747397441404,-400.0,0.00016438,2]
[361255066,1747397441414,-400.0,0.00016438,2]
[361255067,1747397441423,-400.0,0.00016438,2]
[361255068,1747397441432,-413.33,0.00016438,2]
[361255069,1747397441442,-400.0,0.00016438,2]
[361255070,1747397441451,-400.0,0.00016438,2]
[361255071,1747397441461,-779.8,0.00016438,2]
[361255072,1747397441470,-480.03,0.00016438,2]
[361255073,1747397441479,-400.0,0.00016438,2]
[361255074,1747397441488,-400.0,0.00016438,2]
[361255075,1747397441498,-400.0,0.00016438,2]
[361255076,1747397441507,-684.32,0.00016438,2]
[361255077,1747397441517,-1275.24,0.00016438,2]
[361255078,1747397441526,-500.0,0.00016438,2]
[361255079,1747397441638,-500.0,0.00016438,2]
[361255080,1747397441647,-400.0,0.00016438,2]
[361255081,1747397441656,-400.0,0.00016438,2]
[361255082,1747397441666,-400.0,0.00016438,2]
[361255083,1747397441675,-400.0,0.00016438,2]
[361255084,1747397441684,-1098.53,0.00016438,2]
[361255085,1747397441693,-400.0,0.00016438,2]
[361255086,1747397441703,-400.0,0.00016438,2]
[361255087,1747397441712,-405.47508015,0.00016438,2]
[361255088,1747397441721,-400.0,0.00016438,2]
[361255089,1747397441730,-557.06,0.00016438,2]
[361255090,1747397441739,-415.03,0.00016438,2]
[361255091,1747397441748,-400.0,0.00016438,2]
[361255092,1747397441758,-400.0,0.00016438,2]
[361255093,1747397441767,-500.0,0.00016438,2]
[361255094,1747397441776,-482.19,0.00016438,2]
[361255095,1747397441785,-400.0,0.00016438,2]
[361255096,1747397441794,-400.3007675,0.00016438,2]
[361255097,1747397441804,-400.0,0.00016438,2]
[361255098,1747397441813,-455.45,0.00016438,2]
[361255099,1747397441822,-400.0,0.00016438,2]
[361255100,1747397441831,-1051.17,0.00016438,2]
[361255101,1747397441841,-400.0,0.00016438,2]
[361255102,1747397441850,-400.0,0.00016438,2]
[361255103,1747397441859,-400.0,0.00016438,2]
[361255104,1747397441868,-504.10896976,0.00016438,2]
[361255105,1747397441877,-601.39,0.00016438,2]
[361255106,1747397441886,-640.7,0.00016438,2]
[361255107,1747397441895,-1201.22,0.00016438,2]
[361255108,1747397441904,-400.0,0.00016438,2]
[361255109,1747397441914,-400.0,0.00016438,2]
[361255110,1747397441926,-400.0,0.00016438,2]
[361255111,1747397441936,-839.9,0.00016438,2]
[361255112,1747397441945,-527.14755182,0.00016438,2]
[361255113,1747397441954,-400.0,0.00016438,2]
[361255114,1747397441963,-400.0,0.00016438,2]
[361255115,1747397441972,-248.279243,0.00016438,2]
[361255116,1747397441981,-248.279243,0.00016438,2]
[361255117,1747397441990,-248.279243,0.00016438,2]
[361255118,1747397442003,-523.43395236,0.00016438,2]
[361255119,1747397442013,-248.279243,0.00016438,2]
[361255120,1747397442022,-971.83,0.00016438,2]
[361255121,1747397442031,-400.0,0.00016438,2]
[361255122,1747397442040,-400.0,0.00016438,2]
[361255123,1747397442049,-400.0,0.00016438,2]
[361255124,1747397442058,-248.279243,0.00016438,2]
[361255125,1747397442068,-248.279243,0.00016438,2]
[361255126,1747397442077,-248.279243,0.00016438,2]
[361255127,1747397442086,-405.65,0.00016438,2]
[361255128,1747397442096,-400.0,0.00016438,2]
[361255129,1747397442105,-400.0,0.00016438,2]
[361255130,1747397442115,-248.279243,0.00016438,2]
[361255131,1747397442125,-476.65,0.00016438,2]
[361255132,1747397442134,-400.0,0.00016438,2]
[361255133,1747397442143,-475.94,0.00016438,2]
[361255134,1747397442152,-400.0,0.00016438,2]
[361255135,1747397442162,-400.0,0.00016438,2]
[361255136,1747397442171,-400.0,0.00016438,2]
[361255137,1747397442180,-571.03,0.00016438,2]
[361255138,1747397442189,-400.0,0.00016438,2]
[361255139,1747397442199,-1126.31,0.00016438,2]
[361255140,1747397442208,-400.0,0.00016438,2]
[361255141,1747397442217,-400.0,0.00016438,2]
[361255142,1747397442226,-400.0,0.00016438,2]
[361255143,1747397442235,-400.0,0.00016438,2]
[361255144,1747397442244,-400.0,0.00016438,2]
[361255145,1747397442253,-400.0,0.00016438,2]
[361255146,1747397442262,-651.08,0.00016438,2]
[361255147,1747397442271,-400.0,0.00016438,2]
[361255148,1747397442280,-400.0,0.00016438,2]
[361255149,1747397442289,-405.47,0.00016438,2]
[361255150,1747397442298,-400.0,0.00016438,2]
[361255151,1747397442307,-400.0,0.00016438,2]
[361255152,1747397442316,-400.0,0.00016438,2]
[361255153,1747397442324,-400.0,0.00016438,2]
[361255154,1747397442333,-510.51,0.00016438,2]
[361255155,1747397442342,-400.0,0.00016438,2]
[361255156,1747397442351,-2213.15,0.00016438,2]
[361255157,1747397442360,-400.0,0.00016438,2]
[361255158,1747397442369,-557.64,0.00016438,2]
[361255159,1747397442378,-400.0,0.00016438,2]
[361255160,1747397442387,-402.0921663,0.00016438,2]
[361255161,1747397442396,-400.0,0.00016438,2]
[361255162,1747397442405,-400.0,0.00016438,2]
[361255163,1747397442414,-829.32,0.00016438,2]
[361255164,1747397442423,-400.0,0.00016438,2]
[361255165,1747397442432,-356.10617876,0.00016438,2]
[361255166,1747397442441,-400.0,0.00016438,2]
[361255167,1747397442450,-400.0,0.00016438,2]
[361255168,1747397442459,-400.0,0.00016438,2]
[361255169,1747397442468,-403.8679857,0.00016438,2]
[361255170,1747397442477,-400.0,0.00016438,2]
[361255171,1747397442486,-416.58,0.00016438,2]
[361255172,1747397442495,-400.0,0.00016438,2]
[361255173,1747397442504,-400.0,0.00016438,2]
[361255174,1747397442514,-400.0,0.00016438,2]
[361255175,1747397442523,-400.0,0.00016438,2]
[361255176,1747397442532,-400.0,0.00016438,2]
[361255177,1747397442541,-1206.38,0.00016438,2]
[361255178,1747397442551,-517.62692283,0.00016438,2]
[361255179,1747397442560,-400.0,0.00016438,2]
[361255180,1747397442570,-1585.72,0.00016438,2]
[361255181,1747397442579,-400.0,0.00016438,2]
[361255182,1747397442588,-606.45,0.00016438,2]
[361255183,1747397442598,-515.45776898,0.00016438,2]
[361255184,1747397442607,-1704.95,0.00016438,2]
[361255186,1747397442616,-151.0,0.00016438,2]
[361255187,1747397442625,-929.54,0.00016438,2]
[361255188,1747397442635,-400.0,0.00016438,2]
[361255189,1747397442644,-929.54,0.00016438,2]
[361255190,1747397442653,-929.54,0.00016438,2]
[361255191,1747397442663,-400.0,0.00016438,2]
[361255192,1747397442672,-929.54,0.00016438,2]
[361255193,1747397442681,-929.54,0.00016438,2]
[361255194,1747397442690,-929.54,0.00016438,2]
[361255195,1747397442699,-530.21511067,0.00016438,2]
[361255196,1747397442708,-400.0,0.00016438,2]
[361255197,1747397442718,-400.0,0.00016438,2]
[361255198,1747397442727,-422.38,0.00016438,2]
[361255199,1747397442736,-400.0,0.00016438,2]
[361255200,1747397442745,-950.63,0.00016438,2]
[361255201,1747397442754,-400.0,0.00016438,2]
[361255202,1747397442764,-443.77,0.00016438,2]
[361255203,1747397442773,-830.45,0.00016438,2]
[361255204,1747397442782,-400.0,0.00016438,2]
[361255205,1747397442792,-650.46,0.00016438,2]
[361255206,1747397442802,-400.0,0.00016438,2]
[361255207,1747397442811,-417.81,0.00016438,2]
[361255208,1747397442820,-12033.42,0.00016438,2]
[361255209,1747397442830,-400.0,0.00016438,2]
[361255210,1747397442839,-400.0,0.00016438,2]
[361255211,1747397442848,-400.0,0.00016438,2]
[361255213,1747397442858,-400.0,0.00016438,2]
[361255215,1747397442868,-504.27,0.00016438,2]
[361255217,1747397442877,-1041.89,0.00016438,2]
[361255219,1747397442887,-205.54836498,0.00016438,2]
[361255220,1747397442896,-400.0,0.00016438,2]
[361255221,1747397442905,-400.0,0.00016438,2]
[361255222,1747397442914,-733.5,0.00016438,2]
[361255223,1747397442926,-400.0,0.00016438,2]
[361255224,1747397442936,-400.0,0.00016438,2]
[361255225,1747397442946,-400.0,0.00016438,2]
[361255226,1747397442955,-400.0,0.00016438,2]
[361255227,1747397442964,-535.33,0.00016438,2]
[361255228,1747397442974,-400.0,0.00016438,2]
[361255229,1747397442983,-400.0,0.00016438,2]
[361255230,1747397442993,-616.73,0.00016438,2]
[361255231,1747397443003,-1416.21,0.00016438,2]
[361255232,1747397443012,-739.23,0.00016438,2]
[361255233,1747397443022,-872.23,0.00016438,2]
[361255234,1747397443032,-400.0,0.00016438,2]
[361255235,1747397443041,-1365.86,0.00016438,2]
[361255236,1747397443052,-400.0,0.00016438,2]
[361255237,1747397443063,-400.0,0.00016438,2]
[361255238,1747397443072,-400.0,0.00016438,2]
[361255239,1747397443082,-7682.27,0.00016438,2]
[361255240,1747397443092,-400.0,0.00016438,2]
[361255241,1747397443102,-941.55,0.00016438,2]
[361255242,1747397443111,-400.0,0.00016438,2]
[361255243,1747397443121,-6916.95,0.00016438,2]
[361255244,1747397443130,-753.84,0.00016438,2]
[361255245,1747397443140,-400.0,0.00016438,2]
[361255246,1747397443150,-196.83933879,0.00016438,2]
[361255247,1747397443160,-400.0,0.00016438,2]
[361255248,1747397443170,-400.0,0.00016438,2]
[361255249,1747397443180,-1069.8,0.00016438,2]
[361255250,1747397443190,-543.52,0.00016438,2]
[361255251,1747397443200,-500.0,0.00016438,2]
[361255252,1747397443210,-400.0,0.00016438,2]
[361255253,1747397443220,-469.07,0.00016438,2]
[361255254,1747397443230,-1501.4,0.00016438,2]
[361255255,1747397443239,-151.0,0.00016438,2]
[361255256,1747397443249,-151.0,0.00016438,2]
[361255257,1747397443258,-400.0,0.00016438,2]
[361255258,1747397443268,-400.0,0.00016438,2]
[361255259,1747397443278,-151.0,0.00016438,2]
[361255260,1747397443288,-1276.47,0.00016438,2]
[361255261,1747397443297,-1749.91,0.00016438,2]
[361255262,1747397443311,-151.0,0.00016438,2]
[361255263,1747397443321,-400.0,0.00016438,2]
[361255264,1747397443330,-400.0,0.00016438,2]
[361255265,1747397443340,-151.0,0.00016438,2]
[361255266,1747397443349,-400.0,0.00016438,2]
[361255267,1747397443358,-151.0,0.00016438,2]
[361255268,1747397443367,-1554.8,0.00016438,2]
[361255269,1747397443377,-151.0,0.00016438,2]
[361255270,1747397443387,-400.0,0.00016438,2]
[361255271,1747397443396,-151.0,0.00016438,2]
[361255272,1747397443405,-968.73,0.00016438,2]
[361255273,1747397443414,-3452.76,0.00016438,2]
[361255274,1747397443424,-799.57,0.00016438,2]
[361255275,1747397443434,-1129.45,0.00016438,2]
[361255276,1747397443443,-400.0,0.00016438,2]
[361255277,1747397443452,-782.68931792,0.00016438,2]
[361255282,1747397444071,-298.86,0.00016438,2]
[361255283,1747397444083,-609.25068208,0.00016438,2]
[361255284,1747397444093,-400.0,0.00016438,2]
[361255285,1747397444102,-400.0,0.00016438,2]
[361255286,1747397444111,-1067.5579456,0.00016438,2]
[361255287,1747397444189,-500.0,0.00016432,2]
[361255288,1747397444199,-500.0,0.00016432,2]
[361255289,1747397444208,-500.0,0.00016432,2]
[361255290,1747397444218,-500.0,0.00016432,2]
[361255291,1747397444227,-500.0,0.00016432,2]
[361255292,1747397444237,-1548.7820544,0.00016438,2]
[361255293,1747397444247,-400.0,0.00016438,2]
[361255294,1747397444256,-400.0,0.00016438,2]
[361255295,1747397444266,-831.21,0.00016438,2]
[361255296,1747397444275,-400.0,0.00016438,2]
[361255297,1747397444285,-294.21663045,0.00016438,2]
[361255298,1747397444295,-15642.23,0.00016438,2]
[361255299,1747397444306,-883.6,0.00016438,2]
[361255300,1747397444315,-406.30084807,0.00016438,2]
[361255301,1747397444324,-400.0,0.00016438,2]
[361255302,1747397444334,-1443.14,0.00016438,2]
[361255303,1747397444343,-400.0,0.00016438,2]
[361255304,1747397444353,-885.78,0.00016438,2]
[361255305,1747397444363,-84.39131127,0.00016438,2]
[361255308,1747397446389,-500.0,0.00016432,2]
[361255309,1747397446400,-500.0,0.00016432,2]
[361255310,1747397446410,-500.0,0.00016432,2]
[361255311,1747397446420,-500.0,0.00016432,2]
[361255312,1747397446430,-500.0,0.00016432,2]
[361255313,1747397446440,-500.0,0.00016432,2]
[361255314,1747397446450,-462.08189851,0.00016432,2]
[361255315,1747397446478,-37.91810149,0.00016432,2]
[361255316,1747397446488,-500.0,0.00016432,2]
[361255317,1747397446498,-500.0,0.00016432,2]
[361255318,1747397446509,-500.0,0.00016432,2]
[361255319,1747397446519,-500.0,0.00016432,2]
[361255320,1747397446529,-500.0,0.00016432,2]
[361255321,1747397446538,-500.0,0.00016432,2]
[361255322,1747397446548,-500.0,0.00016432,2]
[361255323,1747397446559,-500.0,0.00016432,2]
[361255324,1747397446569,-500.0,0.00016432,2]
[361255325,1747397446580,-500.0,0.00016432,2]
[361255326,1747397446589,-500.0,0.00016432,2]
[361255327,1747397446600,-500.0,0.00016432,2]
[361255328,1747397446959,-500.0,0.00016432,2]
[361255329,1747397446969,-500.0,0.00016432,2]
[361255330,1747397446979,-500.0,0.00016432,2]
[361255331,1747397446989,-500.0,0.00016432,2]
[361255332,1747397446999,-500.0,0.00016432,2]
[361255333,1747397447009,-500.0,0.00016432,2]
[361255334,1747397447018,-500.0,0.00016432,2]
[361255335,1747397447028,-500.0,0.00016432,2]
[361255336,1747397447038,-500.0,0.00016432,2]
[361255337,1747397447048,-500.0,0.00016432,2]
[361255338,1747397447058,-500.0,0.00016432,2]
[361255339,1747397447069,-500.0,0.00016432,2]
[361255340,1747397447078,-273.80923791,0.00016432,2]
[361255341,1747397447548,-226.19076209,0.00016432,2]
[361255342,1747397447559,-500.0,0.00016432,2]
[361255343,1747397447570,-500.0,0.00016432,2]
[361255344,1747397447581,-500.0,0.00016432,2]
[361255345,1747397447591,-500.0,0.00016432,2]
[361255346,1747397447602,-500.0,0.00016432,2]
[361255347,1747397447612,-272.67495301,0.00016432,2]
[361255348,1747397447622,-500.0,0.00016432,2]
[361255349,1747397447633,-500.0,0.00016432,2]
[361255350,1747397447643,-500.0,0.00016432,2]
[361255351,1747397447653,-500.0,0.00016432,2]
[361255352,1747397447663,-500.0,0.00016432,2]
[361255353,1747397447674,-500.0,0.00016432,2]
[361255354,1747397447684,-500.0,0.00016432,2]
[361255355,1747397447694,-500.0,0.00016432,2]
[361255356,1747397447705,-500.0,0.00016432,2]
[361255357,1747397447715,-500.0,0.00016432,2]
[361255358,1747397447725,-500.0,0.00016432,2]
[361255359,1747397447735,-500.0,0.00016432,2]
[361255360,1747397447745,-218.57700545,0.00016432,2]
[361255361,1747397447755,-500.0,0.00016432,2]
[361255362,1747397447766,-500.0,0.00016432,2]
[361255363,1747397447776,-500.0,0.00016432,2]
[361255364,1747397447785,-500.0,0.00016432,2]
[361255365,1747397447795,-500.0,0.00016432,2]
[361255366,1747397447805,-500.0,0.00016432,2]
[361255367,1747397447815,-500.0,0.00016432,2]
[361255368,1747397447825,-500.0,0.00016432,2]
[361255369,1747397447836,-4032.55728195,0.00016438,2]
[361255370,1747397447848,-2857.39808118,0.00016438,2]
[361255371,1747397447860,-797.6518777,0.00016438,2]
[361255372,1747397447878,-15437.9,0.00016438,2]
[361255373,1747397447894,-1888.98,0.00016438,2]
[361255374,1747397449010,-500.0,0.00016432,2]
[361255375,1747397449020,-728.49761,0.00016438,2]
[361255376,1747397449032,-828.39243985,0.00016438,2]
[361255377,1747397449075,-1023.9000001,0.00016438,2]
[361255378,1747397449091,-433.92295698,0.00016438,2]
[361255379,1747397449103,-472.8816058,0.00016438,2]
[361255380,1747397449114,-1105.9,0.00016438,2]
[361255381,1747397449127,-178790.42509102,0.00016438,2]
[361255382,1747397449137,-487.88868873,0.00016438,2]
[361255383,1747397449146,-400.0,0.00016438,2]
[361255384,1747397449155,-678.75,0.00016438,2]
[361255385,1747397449166,-658.01,0.00016438,2]
[361255386,1747397449175,-157.09438294,0.00016438,2]
[361255387,1747397449185,-649.59,0.00016438,2]
[361255388,1747397449195,-692.8,0.00016438,2]
[361255389,1747397449204,-517.59,0.00016438,2]
[361255390,1747397449214,-400.0,0.00016438,2]
[361255391,1747397449223,-400.0,0.00016438,2]
[361255392,1747397449233,-400.0,0.00016438,2]
[361255393,1747397449243,-400.0,0.00016438,2]
[361255394,1747397449252,-400.0,0.00016438,2]
[361255395,1747397449262,-400.0,0.00016438,2]
[361255396,1747397449271,-400.0,0.00016438,2]
[361255397,1747397449281,-976.16,0.00016438,2]
[361255398,1747397449290,-400.0,0.00016438,2]
[361255399,1747397449300,-767.87,0.00016438,2]
[361255400,1747397449315,-400.0,0.00016438,2]
[361255401,1747397449324,-400.0,0.00016438,2]
[361255402,1747397449334,-1969.17,0.00016438,2]
[361255403,1747397449344,-492.04702904,0.00016438,2]
[361255404,1747397449354,-400.0,0.00016438,2]
[361255405,1747397449363,-2856.03235791,0.00016438,2]
[361255406,1747397449997,-313.2,0.00016438,2]
[361255407,1747397450015,-3788.17764209,0.00016438,2]
[361255408,1747397450028,-400.0,0.00016438,2]
[361255409,1747397450041,-1000.0,0.00016438,2]
[361255410,1747397450051,-225.881469,0.00016438,2]
[361255411,1747397450067,-225.881469,0.00016438,2]
[361255412,1747397450080,-400.0,0.00016438,2]
[361255413,1747397450094,-98.60766594,0.00016438,2]
[361255414,1747397450111,-127.27380306,0.00016438,2]
[361255415,1747397450125,-13475.61955589,0.00016438,2]
[361255416,1747397450144,-2034.44044411,0.00016438,2]
[361255417,1747397450159,-525.3833561,0.00016438,2]
[361255418,1747397450175,-130.4566439,0.00016438,2]
[361255419,1747397450189,-400.0,0.00016438,2]
[361255420,1747397450202,-225.881469,0.00016438,2]
[361255421,1747397450216,-110.8567891,0.00016438,2]
[361255422,1747397450233,-317.43676053,0.00016438,2]
[361255423,1747397450248,-156.52645037,0.00016438,2]
[361255424,1747397450261,-714.63,0.00016438,2]
[361255425,1747397450272,-400.0,0.00016438,2]
[361255426,1747397450283,-1245.72254143,0.00016438,2]
[361255427,1747397450307,-468.79745857,0.00016438,2]
[361255428,1747397450320,-62.64306569,0.00016438,2]
[361255429,1747397450333,-2187.61693431,0.00016438,2]
[361255430,1747397450344,-459.24,0.00016438,2]
[361255431,1747397450357,-165.86195044,0.00016438,2]
[361255432,1747397450372,-234.13804956,0.00016438,2]
[361255433,1747397450384,-400.0,0.00016438,2]
[361255434,1747397450395,-151.0,0.00016438,2]
[361255435,1747397450407,-1707.02,0.00016438,2]
[361255436,1747397450427,-151.0,0.00016438,2]
[361255437,1747397450439,-151.0,0.00016438,2]
[361255438,1747397450451,-151.0,0.00016438,2]
[361255439,1747397450464,-400.0,0.00016438,2]
[361255440,1747397450476,-400.0,0.00016438,2]
[361255441,1747397450488,-5199.78468145,0.00016438,2]
[361255442,1747397450622,-1290.71531855,0.00016438,2]
[361255443,1747397450635,-8450.17234245,0.00016438,2]
[361255445,1747398419870,2009.89258999,0.00027,120]
[361255446,1747398479181,86700.0,0.00011,2]
[361255459,1747398631965,-300.0,0.00010998,2]
[361255461,1747398631975,-1200.0,0.00010998,2]
[361255463,1747398631984,-300.0,0.00010998,2]
[361255465,1747398631993,-500.0,0.00010999,2]
[361255466,1747398632002,-500.0,0.00010999,2]
[361255467,1747398632011,-144.87234792,0.00010999,2]
[361255468,1747398632027,-312.5,0.00010999,2]
[361255469,1747398632081,-42.62765208,0.00010999,2]
[361255470,1747398632091,-500.0,0.00010999,2]
[361255471,1747398632100,-473.60074722,0.00010999,2]
[361255472,1747398632112,-26.39925278,0.00010999,2]
[361255473,1747398632122,-500.0,0.00010999,2]
[361255474,1747398632132,-500.0,0.00010999,2]
[361255475,1747398632141,-139.86357363,0.00010999,2]
[361255476,1747398632166,-360.13642637,0.00010999,2]
[361255477,1747398632175,-250.31171547,0.00010999,2]
[361255478,1747398632187,-249.68828453,0.00010999,2]
[361255479,1747398632196,-500.0,0.00010999,2]
[361255480,1747398632205,-500.0,0.00010999,2]
[361255481,1747398632214,-500.0,0.00010999,2]
[361255482,1747398632223,-500.0,0.00010999,2]
[361255483,1747398632232,-124.80418463,0.00010999,2]
[361255484,1747398632279,-375.19581537,0.00010999,2]
[361255485,1747398632288,-500.0,0.00010999,2]
[361255486,1747398632298,-95.79722596,0.00010999,2]
[361255487,1747398632310,-404.20277404,0.00010999,2]
[361255488,1747398632319,-500.0,0.00010999,2]
[361255489,1747398632328,-194.69722596,0.00010999,2]
[361255490,1747398632341,-305.30277404,0.00010999,2]
[361255491,1747398632351,-500.0,0.00010999,2]
[361255492,1747398632360,-500.0,0.00010999,2]
[361255494,1747398632370,-500.0,0.00010999,2]
[361255495,1747398632379,-47.67747938,0.00010999,2]
[361255499,1747398632430,-452.32252062,0.00010999,2]
[361255501,1747398632440,-500.0,0.00010999,2]
[361255503,1747398632452,-121.58172941,0.00010999,2]
[361255505,1747398632465,-378.41827059,0.00010999,2]
[361255507,1747398632474,-500.0,0.00010999,2]
[361255509,1747398632484,-49.19686941,0.00010999,2]
[361255511,1747398632496,-450.80313059,0.00010999,2]
[361255513,1747398632506,-455.59589707,0.00010999,2]
[361255516,1747398632518,-44.40410293,0.00010999,2]
[361255518,1747398632529,-500.0,0.00010999,2]
[361255520,1747398632539,-500.0,0.00010999,2]
[361255522,1747398632549,-500.0,0.00010999,2]
[361255524,1747398632560,-500.0,0.00010999,2]
[361255526,1747398632570,-500.0,0.00010999,2]
[361255528,1747398632580,-500.0,0.00010999,2]
[361255530,1747398632589,-500.0,0.00010999,2]
[361255532,1747398632600,-500.0,0.00010999,2]
[361255534,1747398632610,-500.0,0.00010999,2]
[361255536,1747398632619,-500.0,0.00010999,2]
[361255538,1747398632628,-500.0,0.00010999,2]
[361255540,1747398632638,-500.0,0.00010999,2]
[361255542,1747398632647,-500.0,0.00010999,2]
[361255544,1747398632656,-500.0,0.00010999,2]
[361255546,1747398632666,-500.0,0.00010999,2]